[Event "*** Titled Tuesday Blitz"]
[Site "Chess.com"]
[Date "2020.11.24"]
[Round "2"]
[White "Gevo1990"]
[Black "1nikolachess"]
[Result "1-0"]
[WhiteElo "2566"]
[BlackElo "2306"]
[TimeControl "180+1"]
[EndTime "10:33:00 PST"]
[Termination "Gevo1990 won by resignation"]

1. e4 {[%clk 0:03:00.9]} 1... e5 {[%clk 0:02:59.2]} 2. Nf3 {[%clk 0:02:59.7]}
2... Nc6 {[%clk 0:02:58.8]} 3. Bc4 {[%clk 0:02:59.8]} 3... Bc5 {[%clk
0:02:57.9]} 4. O-O {[%clk 0:03:00.2]} 4... Nf6 {[%clk 0:02:57.9]} 5. d3 {[%clk
0:03:00]} 5... O-O {[%clk 0:02:57.8]} 6. c3 {[%clk 0:02:59.4]} 6... d6 {[%clk
0:02:56.9]} 7. Nbd2 {[%clk 0:02:56.4]} 7... a6 {[%clk 0:02:56.6]} 8. Bb3 {[%clk
0:02:55.9]} 8... Ba7 {[%clk 0:02:56.4]} 9. h3 {[%clk 0:02:53.2]} 9... Ne7 {[%clk
0:02:56.1]} 10. Nc4 {[%clk 0:02:52.5]} 10... Ng6 {[%clk 0:02:55]} 11. a4 {[%clk
0:02:46.8]} 11... h6 {[%clk 0:02:52.4]} 12. a5 {[%clk 0:02:46.4]} 12... Be6
{[%clk 0:02:43.2]} 13. Ne3 {[%clk 0:02:46]} 13... Qd7 {[%clk 0:02:40]} 14. Bxe6
{[%clk 0:02:43.9]} 14... fxe6 {[%clk 0:02:39.1]} 15. Qb3 {[%clk 0:02:43.5]}
15... Kh7 {[%clk 0:02:28.1]} 16. Nc2 {[%clk 0:02:09.2]} 16... Nh5 {[%clk
0:02:20]} 17. d4 {[%clk 0:02:08.9]} 17... exd4 {[%clk 0:02:14.3]} 18. Nfxd4
{[%clk 0:02:08.6]} 18... e5 {[%clk 0:02:03.1]} 19. Nf5 {[%clk 0:02:07.9]} 19...
Rab8 {[%clk 0:01:54.5]} 20. Be3 {[%clk 0:02:04]} 20... Bxe3 {[%clk 0:01:51.6]}
21. fxe3 {[%clk 0:02:03.7]} 21... Nf6 {[%clk 0:01:48.9]} 22. Qc4 {[%clk
0:01:51.9]} 22... Ne7 {[%clk 0:01:45]} 23. Rad1 {[%clk 0:01:49.5]} 23... Nxf5
{[%clk 0:01:18.1]} 24. exf5 {[%clk 0:01:45.1]} 24... d5 {[%clk 0:01:16.3]} 25.
Qh4 {[%clk 0:01:39.6]} 25... Rbd8 {[%clk 0:01:15.6]} 26. Nb4 {[%clk 0:01:35.4]}
26... c6 {[%clk 0:01:09.3]} 27. Nd3 {[%clk 0:01:34.1]} 27... Qe7 {[%clk
0:01:07.6]} 28. Qg3 {[%clk 0:01:28.8]} 28... Rde8 {[%clk 0:01:07]} 29. Qg6+
{[%clk 0:01:27.1]} 29... Kh8 {[%clk 0:01:07.3]} 30. b4 {[%clk 0:01:26.8]} 30...
Qf7 {[%clk 0:01:07.3]} 31. Qxf7 {[%clk 0:01:18.6]} 31... Rxf7 {[%clk 0:01:07.1]}
32. Nc5 {[%clk 0:01:19.5]} 32... Rc7 {[%clk 0:00:55.9]} 33. g4 {[%clk
0:01:18.6]} 33... Nd7 {[%clk 0:00:56.1]} 34. Ne6 {[%clk 0:01:16.8]} 34... Rcc8
{[%clk 0:00:52.5]} 35. Kg2 {[%clk 0:01:14.2]} 35... Nf8 {[%clk 0:00:52]} 36. Nc5
{[%clk 0:01:14.1]} 36... Rc7 {[%clk 0:00:34.8]} 37. e4 {[%clk 0:01:13.6]} 37...
Rd8 {[%clk 0:00:30.8]} 38. Rfe1 {[%clk 0:01:10.3]} 38... d4 {[%clk 0:00:30.4]}
39. cxd4 {[%clk 0:01:09.6]} 39... exd4 {[%clk 0:00:31.3]} 40. e5 {[%clk
0:01:09.5]} 40... Re7 {[%clk 0:00:27.3]} 41. e6 {[%clk 0:01:09.1]} 41... Kh7
{[%clk 0:00:25.1]} 42. Re4 {[%clk 0:01:08.1]} 42... Rde8 {[%clk 0:00:05.5]} 43.
Rexd4 {[%clk 0:01:07.4]} 43... Rc7 {[%clk 0:00:05.3]} 44. Rd8 {[%clk 0:01:06.5]}
44... Rxd8 {[%clk 0:00:04.6]} 45. Rxd8 {[%clk 0:01:05.4]} 1-0

[Event "*** Titled Tuesday Blitz"]
[Site "Chess.com"]
[Date "2020.11.24"]
[Round "2"]
[White "GAusal"]
[Black "AniJak"]
[Result "1-0"]
[WhiteElo "2017"]
[BlackElo "2359"]
[TimeControl "180+1"]
[EndTime "10:33:00 PST"]
[Termination "GAusal won by resignation"]

1. e4 {[%clk 0:03:00.9]} 1... c6 {[%clk 0:03:00.1]} 2. d4 {[%clk 0:02:57.4]}
2... d5 {[%clk 0:03:00.5]} 3. exd5 {[%clk 0:02:54.4]} 3... cxd5 {[%clk
0:03:00.4]} 4. c4 {[%clk 0:02:53.6]} 4... Nf6 {[%clk 0:02:59.6]} 5. Nf3 {[%clk
0:02:52.7]} 5... e6 {[%clk 0:02:57.4]} 6. c5 {[%clk 0:02:49]} 6... Be7 {[%clk
0:02:56.5]} 7. Nc3 {[%clk 0:02:44.8]} 7... O-O {[%clk 0:02:56.2]} 8. b4 {[%clk
0:02:41.5]} 8... a5 {[%clk 0:02:55.6]} 9. b5 {[%clk 0:02:38]} 9... b6 {[%clk
0:02:54.8]} 10. c6 {[%clk 0:02:34.7]} 10... Bb4 {[%clk 0:02:55.1]} 11. Bd2
{[%clk 0:02:29.7]} 11... Bxc3 {[%clk 0:02:13.7]} 12. Bxc3 {[%clk 0:02:25.5]}
12... Ne4 {[%clk 0:02:14.6]} 13. Qc2 {[%clk 0:02:16]} 13... e5 {[%clk
0:02:10.2]} 14. dxe5 {[%clk 0:02:12.7]} 14... Bf5 {[%clk 0:02:09.8]} 15. Bd3
{[%clk 0:02:08.3]} 15... Bg6 {[%clk 0:02:04.2]} 16. O-O {[%clk 0:02:02]} 16...
Qe7 {[%clk 0:01:58.9]} 17. a4 {[%clk 0:01:43.1]} 17... Rd8 {[%clk 0:01:49.2]}
18. Rfd1 {[%clk 0:01:32.5]} 18... Rc8 {[%clk 0:01:48.5]} 19. Be1 {[%clk
0:01:31.5]} 19... Nd7 {[%clk 0:01:45.5]} 20. Bxe4 {[%clk 0:01:27]} 20... Bxe4
{[%clk 0:01:41.6]} 21. Qc3 {[%clk 0:01:24.3]} 21... Nc5 {[%clk 0:01:41.4]} 22.
Nd2 {[%clk 0:01:16.9]} 22... Bf5 {[%clk 0:01:35.8]} 23. f3 {[%clk 0:01:11.5]}
23... Rd8 {[%clk 0:01:34]} 24. Qd4 {[%clk 0:01:08.7]} 24... Rab8 {[%clk
0:01:30.1]} 25. Bg3 {[%clk 0:01:08.1]} 25... Ne6 {[%clk 0:01:28.8]} 26. Qb2
{[%clk 0:01:03.8]} 26... h5 {[%clk 0:01:26.7]} 27. Bf2 {[%clk 0:00:58.4]} 27...
h4 {[%clk 0:01:11.9]} 28. h3 {[%clk 0:00:56.3]} 28... d4 {[%clk 0:01:10.4]} 29.
Nc4 {[%clk 0:00:53]} 29... Qc5 {[%clk 0:01:01.9]} 30. Nd6 {[%clk 0:00:49.5]}
30... Bg6 {[%clk 0:00:55.5]} 31. Bxd4 {[%clk 0:00:47.1]} 31... Qb4 {[%clk
0:00:37.2]} 32. Qxb4 {[%clk 0:00:44]} 32... axb4 {[%clk 0:00:38.1]} 33. a5
{[%clk 0:00:40.7]} 33... bxa5 {[%clk 0:00:39]} 34. b6 {[%clk 0:00:39.7]} 34...
Rf8 {[%clk 0:00:32.8]} 35. c7 {[%clk 0:00:38.8]} 35... Nxc7 {[%clk 0:00:30.4]}
36. bxc7 {[%clk 0:00:37.5]} 36... Rbc8 {[%clk 0:00:30]} 37. Nxc8 {[%clk
0:00:35.8]} 37... Rxc8 {[%clk 0:00:30]} 38. Bb6 {[%clk 0:00:36.5]} 38... Kh7
{[%clk 0:00:27.6]} 39. Rxa5 {[%clk 0:00:34.3]} 39... b3 {[%clk 0:00:27.4]} 40.
Rb5 {[%clk 0:00:34.2]} 40... Bc2 {[%clk 0:00:25.3]} 41. Rd8 {[%clk 0:00:32.5]}
41... Rxc7 {[%clk 0:00:25.3]} 42. Bxc7 {[%clk 0:00:31.9]} 1-0

[Event "*** Titled Tuesday Blitz"]
[Site "Chess.com"]
[Date "2020.11.24"]
[Round "2"]
[White "GM_Levan_Pantsulaia"]
[Black "TST2014"]
[Result "1-0"]
[WhiteElo "2830"]
[BlackElo "2519"]
[TimeControl "180+1"]
[EndTime "10:33:03 PST"]
[Termination "GM_Levan_Pantsulaia won on time"]

1. Nf3 {[%clk 0:03:00.9]} 1... Nf6 {[%clk 0:02:59]} 2. g3 {[%clk 0:03:00.6]}
2... d5 {[%clk 0:02:58.1]} 3. Bg2 {[%clk 0:02:59.6]} 3... c5 {[%clk 0:02:57.1]}
4. c4 {[%clk 0:02:58.8]} 4... d4 {[%clk 0:02:56.6]} 5. O-O {[%clk 0:02:58.3]}
5... Nc6 {[%clk 0:02:56.1]} 6. e3 {[%clk 0:02:56.3]} 6... e5 {[%clk 0:02:53.4]}
7. exd4 {[%clk 0:02:55.9]} 7... exd4 {[%clk 0:02:52.8]} 8. d3 {[%clk 0:02:52.8]}
8... Bd6 {[%clk 0:02:46.4]} 9. Re1+ {[%clk 0:02:52.3]} 9... Kf8 {[%clk
0:02:31.5]} 10. Na3 {[%clk 0:02:48.5]} 10... h6 {[%clk 0:02:27.6]} 11. Nc2
{[%clk 0:02:44.7]} 11... a5 {[%clk 0:02:25.9]} 12. b3 {[%clk 0:02:29.9]} 12...
Bf5 {[%clk 0:02:24]} 13. a3 {[%clk 0:02:28.7]} 13... Qd7 {[%clk 0:02:17.2]} 14.
Rb1 {[%clk 0:02:28.3]} 14... Re8 {[%clk 0:02:13.4]} 15. Rxe8+ {[%clk 0:01:59.6]}
15... Qxe8 {[%clk 0:02:11.4]} 16. b4 {[%clk 0:01:56.9]} 16... axb4 {[%clk
0:02:02.6]} 17. axb4 {[%clk 0:01:55.7]} 17... b6 {[%clk 0:01:51.2]} 18. bxc5
{[%clk 0:01:55.7]} 18... bxc5 {[%clk 0:01:47.6]} 19. Ba3 {[%clk 0:01:52.7]}
19... g5 {[%clk 0:01:37]} 20. Ncxd4 {[%clk 0:01:49.3]} 20... Nxd4 {[%clk
0:01:30.3]} 21. Nxd4 {[%clk 0:01:48.6]} 21... Bg4 {[%clk 0:01:30.7]} 22. Qd2
{[%clk 0:01:45]} 22... Kg7 {[%clk 0:01:25]} 23. h3 {[%clk 0:01:37.6]} 23... Bd7
{[%clk 0:01:22.2]} 24. Nb5 {[%clk 0:01:33.8]} 24... Be7 {[%clk 0:01:05.3]} 25.
Qe3 {[%clk 0:01:26]} 25... Bf8 {[%clk 0:00:47]} 26. Bxc5 {[%clk 0:01:23.2]}
26... Bxc5 {[%clk 0:00:41.6]} 27. Qxc5 {[%clk 0:01:24.1]} 27... Qe2 {[%clk
0:00:40.6]} 28. Qe3 {[%clk 0:01:17.2]} 28... Qc2 {[%clk 0:00:36.7]} 29. Rc1
{[%clk 0:01:12.5]} 29... Qb2 {[%clk 0:00:36]} 30. Nd6 {[%clk 0:01:05.3]} 30...
Rb8 {[%clk 0:00:16]} 31. c5 {[%clk 0:01:03.3]} 31... Rd8 {[%clk 0:00:13.2]} 32.
d4 {[%clk 0:00:59.7]} 32... Be6 {[%clk 0:00:12]} 33. Qc3 {[%clk 0:00:51.2]}
33... Qe2 {[%clk 0:00:11.1]} 34. d5 {[%clk 0:00:49.4]} 34... Bd7 {[%clk
0:00:08]} 35. Ne4 {[%clk 0:00:41.7]} 1-0

[Event "*** Titled Tuesday Blitz"]
[Site "Chess.com"]
[Date "2020.11.24"]
[Round "2"]
[White "Pikachess999"]
[Black "1e41-0"]
[Result "1/2-1/2"]
[WhiteElo "2352"]
[BlackElo "2663"]
[TimeControl "180+1"]
[EndTime "10:33:03 PST"]
[Termination "Game drawn by stalemate"]

1. e4 {[%clk 0:03:00.9]} 1... e6 {[%clk 0:02:59.2]} 2. d4 {[%clk 0:03:01.1]}
2... d5 {[%clk 0:03:00.1]} 3. Nc3 {[%clk 0:03:01.7]} 3... Bb4 {[%clk 0:02:59.8]}
4. e5 {[%clk 0:03:01.6]} 4... c5 {[%clk 0:03:00.3]} 5. a3 {[%clk 0:03:02.2]}
5... Bxc3+ {[%clk 0:03:00.9]} 6. bxc3 {[%clk 0:03:03.1]} 6... Ne7 {[%clk
0:03:00.8]} 7. Qg4 {[%clk 0:03:03.6]} 7... Qc7 {[%clk 0:03:01.3]} 8. Qxg7 {[%clk
0:03:03.5]} 8... Rg8 {[%clk 0:03:01.9]} 9. Qxh7 {[%clk 0:03:04]} 9... cxd4
{[%clk 0:03:02.5]} 10. Ne2 {[%clk 0:03:04.2]} 10... Nbc6 {[%clk 0:03:03]} 11. f4
{[%clk 0:03:04.4]} 11... dxc3 {[%clk 0:03:03.4]} 12. Qd3 {[%clk 0:03:04.4]}
12... d4 {[%clk 0:03:03.9]} 13. Nxd4 {[%clk 0:03:04.5]} 13... Nxd4 {[%clk
0:03:04.8]} 14. Qxd4 {[%clk 0:03:05.4]} 14... Bd7 {[%clk 0:03:05.4]} 15. Rg1
{[%clk 0:03:03.6]} 15... Qc6 {[%clk 0:03:01]} 16. g4 {[%clk 0:02:52.2]} 16...
Qf3 {[%clk 0:02:49.2]} 17. Be2 {[%clk 0:02:41.4]} 17... Qh3 {[%clk 0:02:47.3]}
18. Qf2 {[%clk 0:02:38]} 18... Nd5 {[%clk 0:02:43.8]} 19. Qg3 {[%clk 0:02:25.4]}
19... Rh8 {[%clk 0:02:26.8]} 20. Rg2 {[%clk 0:01:49.8]} 20... Bc6 {[%clk
0:02:11.6]} 21. Bf3 {[%clk 0:01:45.9]} 21... Nxf4 {[%clk 0:02:03.2]} 22. Bxc6+
{[%clk 0:01:41.7]} 22... bxc6 {[%clk 0:02:00.6]} 23. Bxf4 {[%clk 0:01:39.9]}
23... Qh7 {[%clk 0:02:00.7]} 24. Qd3 {[%clk 0:01:26.5]} 24... Qxd3 {[%clk
0:01:55.6]} 25. cxd3 {[%clk 0:01:27.4]} 25... O-O-O {[%clk 0:01:55.8]} 26. Ke2
{[%clk 0:01:21.1]} 26... Rd4 {[%clk 0:01:48]} 27. Be3 {[%clk 0:01:15.2]} 27...
Rd5 {[%clk 0:01:46.3]} 28. d4 {[%clk 0:01:10.9]} 28... c5 {[%clk 0:01:45.2]} 29.
dxc5 {[%clk 0:01:11.8]} 29... Rxe5 {[%clk 0:01:44.9]} 30. Rc1 {[%clk 0:01:07.8]}
30... f5 {[%clk 0:01:44.5]} 31. gxf5 {[%clk 0:00:52.3]} 31... exf5 {[%clk
0:01:45.4]} 32. Rf2 {[%clk 0:00:52.6]} 32... Rh4 {[%clk 0:01:31.9]} 33. Rxc3
{[%clk 0:00:26.2]} 33... f4 {[%clk 0:01:31.2]} 34. c6 {[%clk 0:00:15.7]} 34...
Kc7 {[%clk 0:01:22]} 35. Kd2 {[%clk 0:00:13]} 35... fxe3+ {[%clk 0:01:20.2]} 36.
Rxe3 {[%clk 0:00:13.9]} 36... Rd4+ {[%clk 0:01:20.3]} 37. Rd3 {[%clk 0:00:14]}
37... Rxd3+ {[%clk 0:01:17.8]} 38. Kxd3 {[%clk 0:00:14.9]} 38... Kxc6 {[%clk
0:01:18.3]} 39. h4 {[%clk 0:00:08.4]} 39... Rh5 {[%clk 0:01:17.8]} 40. Rh2
{[%clk 0:00:08.6]} 40... Kd5 {[%clk 0:01:18.3]} 41. Ke3 {[%clk 0:00:08.8]} 41...
Ke5 {[%clk 0:01:17.8]} 42. Kf3 {[%clk 0:00:09.2]} 42... Kf5 {[%clk 0:01:18.5]}
43. Kg3 {[%clk 0:00:09.6]} 43... Rh8 {[%clk 0:01:19]} 44. h5 {[%clk 0:00:08.7]}
44... Kg5 {[%clk 0:01:19.3]} 45. h6 {[%clk 0:00:08.4]} 45... Rxh6 {[%clk
0:01:16]} 46. Rxh6 {[%clk 0:00:09.3]} 46... Kxh6 {[%clk 0:01:15.9]} 47. Kf4
{[%clk 0:00:10.2]} 47... Kg6 {[%clk 0:01:15.3]} 48. Ke5 {[%clk 0:00:10.6]} 48...
Kf7 {[%clk 0:01:15.8]} 49. Kd6 {[%clk 0:00:10.9]} 49... Ke8 {[%clk 0:01:16.4]}
50. Kc7 {[%clk 0:00:11]} 50... Ke7 {[%clk 0:01:15.7]} 51. a4 {[%clk 0:00:08.7]}
51... a5 {[%clk 0:01:15.7]} 52. Kb6 {[%clk 0:00:08.2]} 52... Kd6 {[%clk
0:01:16.3]} 53. Kxa5 {[%clk 0:00:08.5]} 53... Kc5 {[%clk 0:01:16.5]} 54. Ka6
{[%clk 0:00:09]} 54... Kc6 {[%clk 0:01:17.4]} 55. a5 {[%clk 0:00:09]} 55... Kc7
{[%clk 0:01:17]} 56. Ka7 {[%clk 0:00:07.7]} 56... Kc8 {[%clk 0:01:17.6]} 57. a6
{[%clk 0:00:08.1]} 57... Kc7 {[%clk 0:01:18]} 58. Ka8 {[%clk 0:00:07.7]} 58...
Kb6 {[%clk 0:01:17.7]} 59. a7 {[%clk 0:00:06.9]} 59... Kc7 {[%clk 0:01:18.6]}
1/2-1/2

[Event "*** Titled Tuesday Blitz"]
[Site "Chess.com"]
[Date "2020.11.24"]
[Round "2"]
[White "LamaChampetre"]
[Black "HaryKane"]
[Result "0-1"]
[WhiteElo "2207"]
[BlackElo "2606"]
[TimeControl "180+1"]
[EndTime "10:33:06 PST"]
[Termination "HaryKane won by checkmate"]

1. d4 {[%clk 0:03:00.9]} 1... e6 {[%clk 0:02:59.5]} 2. c4 {[%clk 0:02:59.9]}
2... f5 {[%clk 0:02:58.9]} 3. Nc3 {[%clk 0:02:52]} 3... Nf6 {[%clk 0:02:59.3]}
4. Nf3 {[%clk 0:02:49.1]} 4... Bb4 {[%clk 0:02:58.8]} 5. Qc2 {[%clk 0:02:42.7]}
5... O-O {[%clk 0:02:58.1]} 6. g3 {[%clk 0:02:38.9]} 6... Ne4 {[%clk 0:02:47.6]}
7. Bd2 {[%clk 0:02:34.4]} 7... Bxc3 {[%clk 0:02:45.5]} 8. Bxc3 {[%clk
0:02:34.1]} 8... Nxc3 {[%clk 0:02:40.8]} 9. Qxc3 {[%clk 0:02:32.1]} 9... b6
{[%clk 0:02:41.4]} 10. Bg2 {[%clk 0:02:32.1]} 10... Bb7 {[%clk 0:02:42]} 11. O-O
{[%clk 0:02:31.2]} 11... Be4 {[%clk 0:02:41.5]} 12. Bh3 {[%clk 0:02:23.1]} 12...
d6 {[%clk 0:02:36.6]} 13. Nd2 {[%clk 0:02:21.8]} 13... Bb7 {[%clk 0:02:35.5]}
14. Rfe1 {[%clk 0:02:20.7]} 14... Qf6 {[%clk 0:02:24.9]} 15. f4 {[%clk 0:02:08]}
15... Nc6 {[%clk 0:02:14.5]} 16. Nf3 {[%clk 0:02:01.1]} 16... Rae8 {[%clk
0:02:09.8]} 17. Bg2 {[%clk 0:01:37.5]} 17... Ne7 {[%clk 0:01:57.4]} 18. Ng5
{[%clk 0:01:27.6]} 18... Bxg2 {[%clk 0:01:56.2]} 19. Kxg2 {[%clk 0:01:28.3]}
19... Ng6 {[%clk 0:01:44.2]} 20. e4 {[%clk 0:01:18.3]} 20... e5 {[%clk
0:01:37.2]} 21. dxe5 {[%clk 0:01:11.1]} 21... dxe5 {[%clk 0:01:34.8]} 22. exf5
{[%clk 0:01:11.2]} 22... Qxf5 {[%clk 0:01:32.7]} 23. c5 {[%clk 0:00:39]} 23...
h6 {[%clk 0:01:25.1]} 24. Qc4+ {[%clk 0:00:28]} 24... Kh8 {[%clk 0:01:24.7]} 25.
Nh3 {[%clk 0:00:23.1]} 25... exf4 {[%clk 0:01:16.4]} 26. Nxf4 {[%clk 0:00:18.1]}
26... Nxf4+ {[%clk 0:01:12.4]} 27. gxf4 {[%clk 0:00:17]} 27... Qg4+ {[%clk
0:00:54.5]} 28. Kh1 {[%clk 0:00:14.5]} 28... Qf3+ {[%clk 0:00:42.3]} 29. Kg1
{[%clk 0:00:13]} 29... Re3 {[%clk 0:00:37.3]} 30. Rxe3 {[%clk 0:00:09.8]} 30...
Qxe3+ {[%clk 0:00:38.2]} 31. Kg2 {[%clk 0:00:09.7]} 31... Rxf4 {[%clk
0:00:35.7]} 32. Qd5 {[%clk 0:00:05.8]} 32... Qe2+ {[%clk 0:00:29]} 33. Kg3
{[%clk 0:00:05.5]} 33... Qf2+ {[%clk 0:00:28.4]} 34. Kh3 {[%clk 0:00:05.7]}
34... Rh4# {[%clk 0:00:29.1]} 0-1

[Event "*** Titled Tuesday Blitz"]
[Site "Chess.com"]
[Date "2020.11.24"]
[Round "2"]
[White "PlotnikovPavel"]
[Black "MasterMK73"]
[Result "1-0"]
[WhiteElo "2492"]
[BlackElo "2286"]
[TimeControl "180+1"]
[EndTime "10:33:06 PST"]
[Termination "PlotnikovPavel won on time"]

1. e4 {[%clk 0:03:00.9]} 1... c5 {[%clk 0:02:57.3]} 2. Nc3 {[%clk 0:03:00.5]}
2... e6 {[%clk 0:02:56]} 3. Nge2 {[%clk 0:02:59.5]} 3... a6 {[%clk 0:02:55.2]}
4. d4 {[%clk 0:02:58.9]} 4... cxd4 {[%clk 0:02:54.7]} 5. Nxd4 {[%clk 0:02:59.6]}
5... Qc7 {[%clk 0:02:54]} 6. Be3 {[%clk 0:03:00.2]} 6... Nf6 {[%clk 0:02:53.3]}
7. Qf3 {[%clk 0:02:59.8]} 7... Bb4 {[%clk 0:02:47.4]} 8. Bd2 {[%clk 0:02:55.1]}
8... O-O {[%clk 0:02:28.3]} 9. Bd3 {[%clk 0:02:53.9]} 9... Bxc3 {[%clk
0:02:19.9]} 10. Bxc3 {[%clk 0:02:51.2]} 10... e5 {[%clk 0:02:12.1]} 11. Nf5
{[%clk 0:02:49.5]} 11... d5 {[%clk 0:02:10.6]} 12. Qg3 {[%clk 0:02:33.7]} 12...
Bxf5 {[%clk 0:02:06.5]} 13. exf5 {[%clk 0:02:30.2]} 13... d4 {[%clk 0:01:58.1]}
14. Bxd4 {[%clk 0:02:27.7]} 14... Nc6 {[%clk 0:01:49.7]} 15. Bc3 {[%clk
0:02:27.4]} 15... b5 {[%clk 0:01:41.3]} 16. O-O {[%clk 0:02:24.8]} 16... b4
{[%clk 0:01:39.8]} 17. Bd2 {[%clk 0:02:24]} 17... Kh8 {[%clk 0:01:32.7]} 18. Bg5
{[%clk 0:02:23.1]} 18... Nd5 {[%clk 0:01:12]} 19. Qh4 {[%clk 0:02:16.4]} 19...
f6 {[%clk 0:01:08.3]} 20. Bd2 {[%clk 0:02:15.6]} 20... Nd4 {[%clk 0:01:04.1]}
21. Rac1 {[%clk 0:02:04.4]} 21... Qd7 {[%clk 0:01:00.4]} 22. Qh3 {[%clk
0:01:55.1]} 22... Nf4 {[%clk 0:00:53.8]} 23. Bxf4 {[%clk 0:01:53.3]} 23... exf4
{[%clk 0:00:53.9]} 24. Rcd1 {[%clk 0:01:49.8]} 24... Qa7 {[%clk 0:00:47.6]} 25.
Rfe1 {[%clk 0:01:26.9]} 25... Rae8 {[%clk 0:00:42]} 26. Qg4 {[%clk 0:01:17.1]}
26... Qc7 {[%clk 0:00:31.5]} 27. Bxa6 {[%clk 0:00:40.2]} 27... Qxc2 {[%clk
0:00:22.5]} 28. Rxe8 {[%clk 0:00:31.7]} 28... Rxe8 {[%clk 0:00:08.6]} 29. Rxd4
{[%clk 0:00:30.6]} 29... h6 {[%clk 0:00:01.1]} 30. Bf1 {[%clk 0:00:23.6]} 1-0

[Event "*** Titled Tuesday Blitz"]
[Site "Chess.com"]
[Date "2020.11.24"]
[Round "2"]
[White "CM_rui"]
[Black "JiiHart"]
[Result "1-0"]
[WhiteElo "2380"]
[BlackElo "2059"]
[TimeControl "180+1"]
[EndTime "10:33:08 PST"]
[Termination "CM_rui won by resignation"]

1. e4 {[%clk 0:03:00.9]} 1... c5 {[%clk 0:02:59.8]} 2. Nf3 {[%clk 0:02:58.7]}
2... Nc6 {[%clk 0:02:59.7]} 3. c4 {[%clk 0:02:58.8]} 3... g6 {[%clk 0:02:58.1]}
4. d4 {[%clk 0:02:58.9]} 4... cxd4 {[%clk 0:02:57.2]} 5. Nxd4 {[%clk 0:02:59.8]}
5... Bg7 {[%clk 0:02:57.5]} 6. Be3 {[%clk 0:02:59.8]} 6... d6 {[%clk 0:02:48.4]}
7. Nc3 {[%clk 0:02:58.7]} 7... Nf6 {[%clk 0:02:47.9]} 8. Be2 {[%clk 0:02:57]}
8... O-O {[%clk 0:02:45.5]} 9. O-O {[%clk 0:02:56.5]} 9... Bd7 {[%clk
0:02:40.4]} 10. Rc1 {[%clk 0:02:55.5]} 10... Qa5 {[%clk 0:02:29.6]} 11. f3
{[%clk 0:02:54.2]} 11... Rfe8 {[%clk 0:01:52.5]} 12. Qd2 {[%clk 0:02:39.9]}
12... a6 {[%clk 0:01:48.3]} 13. Rfd1 {[%clk 0:02:39]} 13... Rab8 {[%clk
0:01:43.8]} 14. Bf1 {[%clk 0:02:30.7]} 14... Nxd4 {[%clk 0:01:42]} 15. Bxd4
{[%clk 0:02:30.4]} 15... b5 {[%clk 0:01:41.5]} 16. b3 {[%clk 0:02:25.1]} 16...
bxc4 {[%clk 0:01:37.2]} 17. Bxc4 {[%clk 0:02:24.6]} 17... Bb5 {[%clk 0:01:28.7]}
18. Bxb5 {[%clk 0:02:01]} 18... axb5 {[%clk 0:01:27.9]} 19. Qf2 {[%clk
0:01:59.9]} 19... Rec8 {[%clk 0:01:06.4]} 20. h3 {[%clk 0:01:33.7]} 20... h5
{[%clk 0:00:58.8]} 21. Nd5 {[%clk 0:01:12.8]} 21... Nxd5 {[%clk 0:00:55]} 22.
exd5 {[%clk 0:01:05.4]} 22... Bxd4 {[%clk 0:00:52.2]} 23. Rxc8+ {[%clk
0:01:01.3]} 23... Rxc8 {[%clk 0:00:49.6]} 24. Rxd4 {[%clk 0:00:58.7]} 24... Qc3
{[%clk 0:00:44.8]} 25. Kh2 {[%clk 0:00:55.4]} 25... Rc5 {[%clk 0:00:30.7]} 26.
Re4 {[%clk 0:00:51.6]} 26... Kf8 {[%clk 0:00:28.3]} 27. Qe2 {[%clk 0:00:47.9]}
27... Qf6 {[%clk 0:00:25.7]} 28. Qd2 {[%clk 0:00:45]} 28... Kg7 {[%clk
0:00:18.7]} 29. a4 {[%clk 0:00:37.5]} 29... bxa4 {[%clk 0:00:18.2]} 30. bxa4
{[%clk 0:00:38.4]} 30... Qa1 {[%clk 0:00:15.1]} 31. Rxe7 {[%clk 0:00:31.5]}
31... Qxa4 {[%clk 0:00:13.4]} 32. Qb2+ {[%clk 0:00:31.5]} 32... Kg8 {[%clk
0:00:11.1]} 33. Qf6 {[%clk 0:00:25.8]} 33... Rc8 {[%clk 0:00:06.3]} 34. Qxf7+
{[%clk 0:00:24.5]} 1-0

[Event "*** Titled Tuesday Blitz"]
[Site "Chess.com"]
[Date "2020.11.24"]
[Round "2"]
[White "ural58"]
[Black "DenisQ"]
[Result "1/2-1/2"]
[WhiteElo "2417"]
[BlackElo "2664"]
[TimeControl "180+1"]
[EndTime "10:33:09 PST"]
[Termination "Game drawn by repetition"]

1. e4 {[%clk 0:02:59.4]} 1... c6 {[%clk 0:02:59.2]} 2. b3 {[%clk 0:02:58.8]}
2... d5 {[%clk 0:03:00.1]} 3. Qe2 {[%clk 0:02:59.2]} 3... dxe4 {[%clk
0:02:59.4]} 4. Nc3 {[%clk 0:02:59.7]} 4... Nf6 {[%clk 0:02:55.9]} 5. Nxe4 {[%clk
0:02:59.5]} 5... Nxe4 {[%clk 0:02:55.6]} 6. Qxe4 {[%clk 0:03:00.1]} 6... Qd5
{[%clk 0:02:55.4]} 7. Qe3 {[%clk 0:03:00.2]} 7... Bf5 {[%clk 0:02:54.1]} 8. Bb2
{[%clk 0:02:59.9]} 8... e6 {[%clk 0:02:34]} 9. O-O-O {[%clk 0:02:57]} 9... Nd7
{[%clk 0:02:33.3]} 10. Nf3 {[%clk 0:02:55]} 10... Qc5 {[%clk 0:02:29.7]} 11.
Qxc5 {[%clk 0:02:10.5]} 11... Nxc5 {[%clk 0:02:30.6]} 12. Nh4 {[%clk 0:01:58.5]}
12... Bg6 {[%clk 0:02:17.7]} 13. Re1 {[%clk 0:01:53]} 13... O-O-O {[%clk
0:02:08.8]} 14. f4 {[%clk 0:01:52]} 14... Bh5 {[%clk 0:01:57.1]} 15. g3 {[%clk
0:01:34.9]} 15... Rg8 {[%clk 0:01:35.6]} 16. f5 {[%clk 0:01:28.4]} 16... exf5
{[%clk 0:01:21.4]} 17. Nxf5 {[%clk 0:01:23.2]} 17... Ne6 {[%clk 0:01:15.4]} 18.
Bh3 {[%clk 0:01:17.8]} 18... Re8 {[%clk 0:01:07.3]} 19. Rhf1 {[%clk 0:01:12.7]}
19... Kd8 {[%clk 0:01:03.1]} 20. Nd4 {[%clk 0:01:05.6]} 20... Nxd4 {[%clk
0:00:58.7]} 21. Bxd4 {[%clk 0:01:06.5]} 21... Rxe1+ {[%clk 0:00:57.7]} 22. Rxe1
{[%clk 0:01:06.2]} 22... b6 {[%clk 0:00:56.8]} 23. Bg2 {[%clk 0:00:56.3]} 23...
c5 {[%clk 0:00:54]} 24. Bc3 {[%clk 0:00:54.4]} 24... Bd6 {[%clk 0:00:51.8]} 25.
a4 {[%clk 0:00:51.8]} 25... f6 {[%clk 0:00:50.1]} 26. a5 {[%clk 0:00:43.6]}
26... Re8 {[%clk 0:00:46.5]} 27. Rxe8+ {[%clk 0:00:43.4]} 27... Bxe8 {[%clk
0:00:47.4]} 28. axb6 {[%clk 0:00:43.7]} 28... axb6 {[%clk 0:00:46.4]} 29. d4
{[%clk 0:00:42.7]} 29... Kc7 {[%clk 0:00:38.6]} 30. Kd2 {[%clk 0:00:40.7]} 30...
Bc6 {[%clk 0:00:34.8]} 31. Bxc6 {[%clk 0:00:38.9]} 31... Kxc6 {[%clk 0:00:35.7]}
32. dxc5 {[%clk 0:00:38.8]} 32... bxc5 {[%clk 0:00:35.6]} 33. Kd3 {[%clk
0:00:38.3]} 33... h5 {[%clk 0:00:35.6]} 34. Bd2 {[%clk 0:00:28.2]} 34... f5
{[%clk 0:00:32.5]} 35. c4 {[%clk 0:00:25.9]} 35... g6 {[%clk 0:00:28.1]} 36. Bf4
{[%clk 0:00:23.4]} 36... Be7 {[%clk 0:00:25.8]} 37. h4 {[%clk 0:00:22.9]} 37...
Bf6 {[%clk 0:00:25.3]} 38. Ke3 {[%clk 0:00:22.7]} 38... Bd4+ {[%clk 0:00:24.7]}
39. Kd3 {[%clk 0:00:22.9]} 39... Bf6 {[%clk 0:00:24.5]} 40. Ke3 {[%clk
0:00:22.6]} 40... Bd4+ {[%clk 0:00:24.5]} 41. Kd3 {[%clk 0:00:22.9]} 41... Bf6
{[%clk 0:00:24.5]} 1/2-1/2